[Event "FIDE Zonal 4-2 Open 2023"]
[Site "Dimbroko"]
[Date "2023.03.27"]
[Round "4.3"]
[White "Barcon, Harmon"]
[Black "Cogan, Nicolas"]
[Result "1-0"]
[ECO "B34"]
[WhiteElo "1928"]
[BlackElo "2013"]
[Annotator "TA"]
[PlyCount "50"]
[EventDate "2023.03.25"]
[EventType "swiss"]
[EventCountry "IVO"]
[SourceTitle "playchess.com"]
[Source "ChessBase"]
[SourceQuality "1"]
[TimeControl "40/5400+30:1800+30"]

{[%evp 12,50,-34,-28,-29,-32,-7,-7,-11,-26,16,0,18,18,10,10,10,10,16,15,34,25,20,0,0,0,29,0,22,0,-14,-18,46,36,32,39,42,43,168,147,154]} 1. e4 {[%emt 0:00:03]} c5 {[%emt 0:02:02]} 2. Nf3 {[%emt 0:00:10]} g6 {[%emt 0:00:07]} 3. d4 {[%emt 0:00:30]} cxd4 {[%emt 0:00:26]} 4. Nxd4 {[%emt 0:00:11]} Bg7 {[%emt 0:00:42]} 5. c3 {[%emt 0:03:53]} Nc6 {[%emt 0:01:21]} 6. Be3 {[%emt 0:03:16]} Nf6 {[%emt 0:01:29]} 7. Bd3 {[%emt 0:00:11]} d5 {[%emt 0:01:55] B34: Sicilian: Accelerated Dragon with 5 Nc3: sidelines.} 8. exd5 {[%emt 0:04:59]} Qxd5 {[%emt 0:11:12] [#] And now ...Nxd4 would win.} 9. O-O {[%emt 0:04:05]} O-O {[%emt 0:00:30] The position is equal.} 10. Be2 {[%emt 0:01:23] Prevents Ng4} Ne5 {[%emt 0:09:11] [#]} 11. Nf3 $146 {[%emt 0:11:53]} (11. Bf4 {is interesting.} Rd8 12. Nd2 Nh5 13. Bg5) ({Predecessor:} 11. Nd2 Neg4 12. N2f3 Nxe3 13. fxe3 Ng4 14. Nc2 Qc5 15. Nfd4 Nf6 16. Bf3 Qb6 17. Nb3 {0-1 Valcarcel,V (1757)-Taira,E (1751) Brasilia IRT Marista U2300 2017 (5.1)}) 11... Bd7 {[%emt 0:30:27]} 12. Bd4 {[%emt 0:07:13]} Nxf3+ {[%emt 0:06:52]} 13. Bxf3 {[%emt 0:02:03]} Qd6 {[%emt 0:11:30]} 14. Nd2 {[%emt 0:10:50]} Bc6 {[%emt 0:03:58]} 15. Re1 {[%emt 0:00:22]} Rfd8 {[%emt 0:05:29][%cal Of6h5]} 16. Bxc6 {[%emt 0:01:31]} bxc6 {[%emt 0:00:20][%cal Bb7c6,Bc6c5][%mdl 32]} 17. Qf3 {[%emt 0:01:19]} c5 {[%emt 0:06:57]} 18. Be3 {[%emt 0:01:33]} Qd5 {[%emt 0:02:27]} 19. Qxd5 {[%emt 0:02:15]} Rxd5 {[%emt 0:01:34]} 20. Nb3 {[%emt 0:11:50][%cal Oc3c4]} c4 {[%emt 0:01:10]} 21. Nd2 {[%emt 0:00:10]} Rb5 {[%emt 0:00:46]} (21... Rc8 $11) 22. Nxc4 $14 {[%emt 0:00:09]} Rc8 {[%emt 0:00:01]} 23. b3 {[%emt 0:00:14]} Nd5 {[%emt 0:00:59]} 24. Bd4 {[%emt 0:00:34]} (24. Bxa7 $2 {is the wrong capture.} Bxc3 25. Ne3 Bxe1 26. Nxd5 Bxf2+ {[%mdl 64] Decoy} 27. Kxf2 Rc2+ 28. Kf1 Rxd5 $19) 24... Nxc3 {[%emt 0:01:05]} (24... Bxd4 $14 25. cxd4 Rb7) 25. Bxg7 $18 {[%emt 0:00:00]} ({And not} 25. Bxa7 Ne2+ 26. Rxe2 Bxa1 $17) 25... Kxg7 {[%emt 0:00:30] Weighted Error Value: White=0.06 (flawless) /Black=0.25 (precise)} 1-0

[Event "FIDE Zonal 4-2 Open 2023"]
[Site "Dimbroko"]
[Date "2023.03.27"]
[Round "4.4"]
[White "Manan, Yoboue Hermann"]
[Black "Egbe, Kossi Thierry"]
[Result "0-1"]
[ECO "B17"]
[WhiteElo "2015"]
[BlackElo "1740"]
[Annotator "TA"]
[PlyCount "116"]
[EventDate "2023.03.25"]
[EventType "swiss"]
[EventCountry "IVO"]
[SourceTitle "playchess.com"]
[Source "ChessBase"]
[SourceQuality "1"]
[TimeControl "40/5400+30:1800+30"]

{[%evp 14,116,20,7,19,22,18,7,7,7,20,14,26,22,30,0,0,0,-14,-11,0,10,16,-130,-117,-132,-97,-104,-108,-116,-64,-55,-51,-127,-104,-109,-113,-102,-105,-109,-99,-97,-115,-114,-126,-137,-110,-108,-102,-99,-66,-66,-68,-68,-68,-69,-68,-77,-73,-74,-69,-188,-115,-111,-105,-108,-107,-142,-114,-107,-95,-104,-81,-208,-207,-311,-287,-300,-306,-318,-318,-377,-378,-455,-443,-501,-496,-561,-537,-817,-813,-806,-768,-801,-774,-709,-764,-818,-816,-710,-688,-29971,-29972,-29961,-6289]} 1. e4 {[%emt 0:00:37]} c6 {[%emt 1:31:00]} 2. Nc3 {[%emt 0:00:24]} d5 {[%emt 0:00:00]} 3. Nf3 {[%emt 0:00:17]} dxe4 {[%emt 0:00:00]} 4. Nxe4 {[%emt 0:00:14]} Nd7 {[%emt 0:01:30]} 5. d4 {[%emt 0:00:25]} Ngf6 {[%emt 0:00:00]} 6. Nxf6+ {[%emt 0:00:50]} Nxf6 {[%emt 0:00:00]} 7. Bd3 {[%emt 0:00:27]} Bg4 {[%emt 0:00:00]} 8. c3 {[%emt 0:00:55]} Qc7 {[%emt 0:00:00] B17: Caro-Kann: Modern Line (4...Nd7).} 9. h3 {[%emt 0:01:04]} Bh5 {[%emt 0:00:00]} 10. g4 {[%emt 0:00:36]} Bg6 {[%emt 0:00:00] The position is equal.} 11. Ne5 {[%emt 0:01:06]} e6 {[%emt 0:00:00] [#]} 12. Qf3 $146 {[%emt 0:05:34]} ({Predecessor:} 12. Bf4 Bd6 13. Qf3 O-O-O 14. O-O-O Nd5 15. Bg3 Rhf8 16. Qe2 Kb8 17. Bxg6 fxg6 18. Kb1 {1-0 Garcia,M (1975)-Franco Valencia,B (2077) Cali qual2 (Women) 2008 (1)}) 12... Bxd3 {[%emt 0:00:00]} 13. Nxd3 {[%emt 0:00:50]} Bd6 {[%emt 0:00:00]} 14. Bg5 {[%emt 0:01:14]} Nd5 {[%emt 0:00:00]} 15. O-O-O {[%emt 0:02:46]} Qa5 {[%emt 0:00:00]} 16. c4 {[%emt 0:05:31]} Nb4 {[%emt 0:00:00]} 17. c5 {[%emt 0:03:39] Nxb4 would be deadly.} Nxd3+ {[%emt 0:00:00]} 18. Rxd3 {[%emt 0:00:30] [#]} (18. Qxd3 $11 {was the only way to keep the balance.} Bc7 19. Kb1) 18... Bxc5 $1 $17 {[%emt 0:00:00][%mdl 512]} 19. h4 {[%emt 0:14:12]} (19. Kb1 Bxd4) 19... Be7 {[%emt 0:00:00]} 20. Bxe7 {[%emt 0:03:40]} Kxe7 {[%emt 0:00:00]} 21. Rb3 {[%emt 0:00:58]} Rab8 {[%emt 0:00:00]} (21... Qxa2 $2 22. Rxb7+ Kd8 23. Qxc6 $18) (21... b6 $17 22. Qf4 Qd5) 22. Qf4 $15 {[%emt 0:01:23]} Qd5 {[%emt 0:00:00]} (22... Qxa2 23. Qc7+ Kf8 24. Qxb8+ Ke7 25. Rxb7+ Kf6 26. Qf4+ Kg6 27. h5#) 23. Rhh3 {[%emt 0:03:37]} (23. Re1 $15) 23... Rhd8 $17 {[%emt 0:00:00]} 24. Rhf3 {[%emt 0:01:30]} f6 {[%emt 0:00:00] aiming for ...e5.} (24... Qxd4 $2 25. Qxf7+ Kd6 26. Rbd3 $18 (26. Rxb7 Rxb7 27. Qxb7 Qe4 $11) (26. Rxb7 Rxb7 27. Qxb7 Qc4+ 28. Rc3 Qf4+ 29. Kc2 Qa4+ 30. b3 Qxa2+ 31. Kc1 Qa1+ 32. Kc2 Qa2+ 33. Kc1 Qa1+ 34. Kc2 Qa2+ $11)) 25. Rfd3 {[%emt 0:04:32]} Rd6 {[%emt 0:00:00]} 26. g5 {[%emt 0:04:15]} Qf5 {[%emt 0:00:00]} (26... fxg5 {simplifies} 27. hxg5 Qf5 28. Qxf5 exf5 29. Ra3 a6) 27. gxf6+ {[%emt 0:01:17]} Qxf6 {[%emt 0:00:00]} ({Reject} 27... gxf6 $6 28. Qh6 $15) 28. Qe4 {[%emt 0:07:42]} g6 {[%emt 0:00:00]} 29. h5 {[%emt 0:09:52]} Qxf2 {[%emt 0:00:00]} 30. hxg6 {[%emt 0:00:35]} Qg1+ {[%emt 0:00:00]} 31. Kd2 {[%emt 0:00:50] [#] Threatens to win with Qh4+.} hxg6 {[%emt 0:00:00]} ({Much weaker is} 31... Qxg6 $6 32. Qh4+ Qf6 33. Qxh7+ Qf7 34. Qh2 $11) 32. Qh4+ {[%emt 0:03:14]} Kd7 {[%emt 0:00:00]} 33. Qh7+ {[%emt 0:02:33]} Kc8 {[%emt 0:00:00]} 34. Qg8+ {[%emt 0:00:38]} Kc7 {[%emt 0:00:00]} 35. Qf7+ {[%emt 0:00:56]} Rd7 {[%emt 0:00:00]} 36. Qf4+ {[%emt 0:07:32]} Kc8 {[%emt 0:16:00]} 37. Re3 {[%emt 0:04:47]} (37. d5 $15) 37... Qg2+ {[%emt 0:00:00]} (37... b6 $19 {And now ...Kb7 would win.} 38. Kc2 Kb7) 38. Kc1 {[%emt 0:02:26]} Qh1+ {[%emt 0:01:00]} 39. Kc2 {[%emt 0:04:24]} Qd5 {[%emt 0:00:00]} 40. Rh3 {[%emt 0:00:25]} Qf5+ {[%emt 0:00:00]} 41. Qxf5 {[%emt 0:31:21]} gxf5 {[%emt 0:12:34][%mdl 4096] Endgame KRR-KRR} 42. Rbe3 {[%emt 0:00:47]} Re7 {[%emt 0:00:19]} 43. Rh8+ {[%emt 0:01:02] Loses the game.} (43. d5 $17 Kd7 44. dxe6+ Kd6 45. Rh2) 43... Kc7 $19 {[%emt 0:00:30]} 44. Rxb8 {[%emt 0:00:00]} (44. Rh6 $142) 44... Kxb8 {[%emt 0:00:00] KR-KR} 45. Rh3 {[%emt 0:00:00]} Kc7 {[%emt 0:00:00]} 46. Kd3 {[%emt 0:00:00]} Rd7 {[%emt 0:00:00]} 47. Ke3 {[%emt 0:00:00]} Rg7 {[%emt 0:00:00]} 48. a3 {[%emt 0:00:00]} Kd6 {[%emt 0:00:00]} 49. Rh8 {[%emt 0:00:00]} Rg2 {[%emt 0:00:00]} 50. b4 {[%emt 0:00:00]} Rg3+ {[%emt 0:00:00]} 51. Kf4 {[%emt 0:00:00]} Rxa3 {[%emt 0:23:07]} 52. Rd8+ {[%emt 0:05:03]} Ke7 {[%emt 0:00:00]} 53. Rb8 {[%emt 0:00:00]} b6 {[%emt 0:00:00][%cal Bb7b6,Bb6b5,Bb5b4][%mdl 32]} 54. Ra8 {[%emt 0:00:00]} a5 {[%emt 0:00:00]} 55. Rb8 {[%emt 0:00:00]} b5 {[%emt 0:00:00]} 56. bxa5 {[%emt 0:00:00]} Rxa5 {[%emt 0:00:00]} 57. Ke5 {[%emt 0:00:00]} b4+ {[%emt 0:00:00]} 58. Kf4 {[%emt 0:00:00]} Rb5 {[%emt 0:00:00] Weighted Error Value: White=0.26 (precise) /Black=0.12 (very precise)} 0-1

[Event "FIDE Zonal 4-2 Open 2023"]
[Site "Dimbroko"]
[Date "2023.03.27"]
[Round "4.5"]
[White "Semeko, Lumen Paco"]
[Black "Nean, Franck Anderson"]
[Result "0-1"]
[ECO "A13"]
[WhiteElo "1483"]
[BlackElo "1851"]
[Annotator "NA RC COMBH"]
[PlyCount "86"]
[EventDate "2023.03.25"]
[EventType "swiss"]
[EventCountry "IVO"]
[SourceTitle "playchess.com"]
[Source "ChessBase"]
[SourceQuality "1"]
[TimeControl "40/5400+30:1800+30"]

1. b3 {[%emt 0:00:31]} Nf6 {[%emt 0:01:26]} 2. Bb2 {[%emt 0:00:09]} e6 {[%emt 0:01:01]} 3. e3 {[%emt 0:00:29]} d5 {[%emt 0:00:33]} 4. Nf3 {[%emt 0:00:08]} Be7 {[%emt 0:00:24]} 5. c4 {[%emt 0:00:24]} Nbd7 {[%emt 0:00:52]} 6. cxd5 {[%emt 0:00:18]} exd5 {[%emt 0:00:16]} 7. d4 {[%emt 0:00:24]} O-O {[%emt 0:00:41]} 8. Be2 {[%emt 0:00:20]} Re8 {[%emt 0:01:08]} 9. O-O {[%emt 0:00:07]} Bd6 {[%emt 0:00:28]} 10. Nbd2 {[%emt 0:00:30]} c6 {[%emt 0:02:44]} 11. Qc2 {[%emt 0:00:37]} Qe7 {[%emt 0:01:12]} 12. h3 {[%emt 0:02:42]} Nf8 {[%emt 0:02:01]} 13. Ne5 {[%emt 0:01:47]} g6 {[%emt 0:06:50]} 14. Rfe1 {[%emt 0:03:35]} Bf5 {[%emt 0:02:39]} 15. Bd3 {[%emt 0:01:27]} Bxd3 {[%emt 0:00:29]} 16. Qxd3 {[%emt 0:00:25]} Qc7 {[%emt 0:03:13]} 17. Rac1 {[%emt 0:09:44]} Re6 {[%emt 0:01:15]} 18. e4 {[%emt 0:05:59]} Rae8 {[%emt 0:01:22]} 19. exd5 {[%emt 0:08:25]} Nxd5 {[%emt 0:00:50]} 20. Ndc4 {[%emt 0:03:05]} f6 {[%emt 0:05:16]} 21. Nxd6 {[%emt 0:02:42]} (21. Nf3 $17) 21... Qxd6 {[%emt 0:00:26]} 22. Nf3 {[%emt 0:00:10]} Nf4 {[%emt 0:01:09]} 23. Qc4 {[%emt 0:06:55] [#]} b5 $1 {[%emt 0:04:13]} 24. Rxe6 {[%emt 0:02:10]} Rxe6 {[%emt 0:00:29]} 25. Qf1 {[%emt 0:04:31]} Ne2+ {[%emt 0:00:50]} 26. Kh1 {[%emt 0:00:05]} Nxc1 {[%emt 0:00:11]} 27. Qxc1 {[%emt 0:00:19]} Qd5 {[%emt 0:02:33]} 28. Qc3 $2 {[%emt 0:01:42]} (28. Qc2 {was necessary.}) 28... Re2 {[%emt 0:02:49]} 29. Kg1 {[%emt 0:02:38] [#]} b4 $1 {[%emt 0:03:44]} 30. Qc1 {[%emt 0:00:25]} Ne6 {[%emt 0:01:13]} 31. Kf1 {[%emt 0:01:22]} Qb5 {[%emt 0:12:28]} 32. Kg1 {[%emt 0:02:38]} Qf5 {[%emt 0:02:59]} 33. d5 {[%emt 0:11:59]} Rc2 {[%emt 0:02:36]} 34. Qa1 {[%emt 0:13:13]} cxd5 {[%emt 0:03:52]} 35. Bxf6 {[%emt 0:00:17]} Qf4 {[%emt 0:01:58]} 36. Bb2 {[%emt 0:04:03]} Ng5 $19 {[%emt 0:03:22]} 37. Qd1 {[%emt 0:05:04]} Nxf3+ {[%emt 0:01:09]} 38. gxf3 {[%emt 0:00:29]} Qd2 {[%emt 0:00:37]} 39. Qxd2 {[%emt 0:00:28]} Rxd2 {[%emt 0:00:03]} 40. Be5 {[%emt 0:00:24]} Rxa2 {[%emt 0:00:16]} 41. Bd6 {[%emt 0:30:41]} a5 {[%emt 0:30:16]} 42. Bc5 {[%emt 0:00:38]} a4 {[%emt 0:03:07]} 43. bxa4 {[%emt 0:04:56]} b3 {[%emt 0:00:14]} 0-1

[Event "FIDE Zonal 4-2 Open 2023"]
[Site "Dimbroko"]
[Date "2023.03.27"]
[Round "4.8"]
[White "Harold Evans"]
[Black "Ble, Kouko Hubert"]
[Result "0-1"]
[ECO "C11"]
[WhiteElo "1714"]
[BlackElo "1825"]
[Annotator "NA RC COMBH"]
[PlyCount "106"]
[EventDate "2023.03.25"]
[EventType "swiss"]
[EventCountry "IVO"]
[SourceTitle "playchess.com"]
[Source "ChessBase"]
[SourceQuality "1"]
[TimeControl "40/5400+30:1800+30"]

1. e4 {[%emt 0:00:09]} Nf6 {[%emt 0:00:13]} 2. Nc3 {[%emt 0:00:19]} d5 {[%emt 0:00:13]} 3. e5 {[%emt 0:00:32]} Nfd7 {[%emt 0:00:13]} 4. d4 {[%emt 0:00:25]} e6 {[%emt 0:00:15]} 5. Be3 {[%emt 0:00:52]} c5 {[%emt 0:00:11]} 6. f4 {[%emt 0:00:30]} Nc6 {[%emt 0:00:14]} 7. Qd2 {[%emt 0:03:18]} a6 {[%emt 0:05:14]} 8. Nf3 {[%emt 0:00:28]} cxd4 {[%emt 0:02:42]} 9. Nxd4 {[%emt 0:00:06]} Bc5 {[%emt 0:00:21]} 10. Nb3 {[%emt 0:04:32]} Bxe3 {[%emt 0:04:37]} 11. Qxe3 {[%emt 0:00:15]} O-O {[%emt 0:00:12]} 12. O-O-O {[%emt 0:00:17]} b6 {[%emt 0:00:29]} 13. Qh3 {[%emt 0:00:20]} Bb7 {[%emt 0:01:11]} 14. Bd3 {[%emt 0:00:26]} g6 {[%emt 0:01:15]} 15. g4 {[%emt 0:01:21]} Nb4 {[%emt 0:00:44]} 16. Rhg1 {[%emt 0:01:31]} f6 {[%emt 0:00:18]} 17. f5 {[%emt 0:02:56]} Nxe5 {[%emt 0:03:00]} 18. fxg6 {[%emt 0:01:04]} Nbxd3+ {[%emt 0:01:30]} 19. cxd3 {[%emt 0:01:25]} hxg6 {[%emt 0:00:43]} 20. d4 {[%emt 0:00:23]} Nf7 {[%emt 0:00:06]} 21. Rg3 {[%emt 0:01:33]} Kg7 {[%emt 0:00:14]} 22. Qg2 {[%emt 0:03:26]} Rh8 {[%emt 0:00:14]} 23. Kb1 {[%emt 0:00:41]} Qd7 {[%emt 0:01:04]} 24. Rf1 {[%emt 0:00:32]} Ng5 {[%emt 0:00:18]} 25. Nd2 {[%emt 0:01:59]} Raf8 {[%emt 0:03:35]} 26. Re3 {[%emt 0:08:11]} Qd6 {[%emt 0:01:05]} 27. h3 {[%emt 0:04:17]} Bc6 $17 {[%emt 0:00:33]} 28. Rfe1 {[%emt 0:01:37]} Re8 {[%emt 0:00:19]} (28... e5 $142 29. Qh2 (29. dxe5 fxe5 30. Qg3 d4 $17) 29... Nf7 30. dxe5 fxe5) 29. Qh1 {[%emt 0:00:29]} (29. Nf3 $17) 29... e5 {[%emt 0:00:53]} 30. Qh2 {[%emt 0:03:00]} Nf7 {[%emt 0:00:06]} 31. dxe5 {[%emt 0:01:35]} fxe5 {[%emt 0:00:03]} 32. h4 {[%emt 0:09:48]} e4 {[%emt 0:06:10]} 33. Qf2 {[%emt 0:02:43]} Ne5 {[%emt 0:05:22]} 34. Qg3 {[%emt 0:01:10]} Qe6 {[%emt 0:01:46]} 35. R3e2 {[%emt 0:05:09]} Qxg4 {[%emt 0:00:55]} 36. Qe3 {[%emt 0:00:47]} Qxh4 {[%emt 0:11:19]} 37. Qxb6 {[%emt 0:00:46]} Re7 {[%emt 0:00:25]} 38. Rg1 {[%emt 0:40:38]} Qf6 {[%emt 0:51:28]} 39. Reg2 $2 {[%emt 0:00:00]} (39. Rf1 Qe6 40. Qd4) 39... Rh6 {[%emt 0:00:00]} 40. Qxa6 {[%emt 0:00:00]} (40. Nd1 $142 Bb5 41. Qxf6+ Kxf6 42. Ka1) 40... d4 {[%emt 0:00:00]} 41. Rf1 {[%emt 0:00:00]} Nf3 {[%emt 0:00:00]} 42. Nd5 {[%emt 0:08:04]} Bxd5 {[%emt 0:00:00]} 43. Qxf6+ {[%emt 0:01:15]} Kxf6 {[%emt 0:32:30]} 44. b3 {[%emt 0:23:41]} g5 {[%emt 0:00:00]} 45. Kb2 {[%emt 0:00:00]} Kf5 {[%emt 0:00:00]} 46. a4 {[%emt 0:00:00]} g4 {[%emt 0:00:00]} 47. Ka3 {[%emt 0:00:00]} e3 {[%emt 0:00:00]} 48. Re2 {[%emt 0:00:00]} Rb7 {[%emt 0:00:00]} 49. Nc4 {[%emt 0:00:00]} Bxc4 {[%emt 0:00:00]} 50. bxc4 {[%emt 0:00:00]} Ke4 {[%emt 0:03:30]} 51. c5 {[%emt 0:03:30]} d3 {[%emt 0:00:00]} 52. Rg2 {[%emt 0:00:00]} Kf4 {[%emt 0:00:00]} 53. Rb1 {[%emt 0:00:00]} Rxb1 {[%emt 0:01:30]} 0-1

[Event "FIDE Zonal 4-2 Open 2023"]
[Site "Dimbroko"]
[Date "2023.03.27"]
[Round "4.9"]
[White "KONAN KOUASSI AUGUSTIN"]
[Black "Mambe, Lobognon Anderson Ol"]
[Result "1-0"]
[ECO "B06"]
[WhiteElo "1775"]
[BlackElo "1916"]
[Annotator "TA"]
[PlyCount "49"]
[EventDate "2023.03.25"]
[EventType "swiss"]
[EventCountry "IVO"]
[SourceTitle "playchess.com"]
[Source "ChessBase"]
[SourceQuality "1"]
[TimeControl "40/5400+30:1800+30"]

{[%evp 9,49,37,104,92,106,104,101,90,157,114,256,225,247,209,284,264,251,175,177,156,203,172,159,160,188,207,305,292,333,320,555,550,535,202,536,530,971,968,2633,2577,2551,2452]} 1. e4 {[%emt 0:01:38]} g6 {[%emt 0:00:14]} 2. d4 {[%emt 0:03:29]} Bg7 {[%emt 0:01:06]} 3. Nf3 {[%emt 0:00:18]} d6 {[%emt 0:00:11]} 4. Nc3 {[%emt 0:01:40]} c6 {[%emt 0:00:17]} 5. h3 {[%emt 0:00:31]} Qb6 {[%emt 0:00:16]} (5... Nf6 $14) 6. Bc4 $16 {[%emt 0:02:21] B06: Modern Defence.} Nd7 {[%emt 0:03:19] [#]} 7. O-O $146 {[%emt 0:03:47]} ({Predecessor:} 7. a4 e6 8. d5 cxd5 9. exd5 e5 10. Nb5 Nc5 11. b4 Na6 12. c3 Bh6 13. Bxh6 Nxh6 {1-0 Kulon,K (1977)-Woniak,K (1997) POL-chT 2nd League 2004 (11.72)}) 7... e6 {[%emt 0:03:29]} 8. Bb3 {[%emt 0:01:11] White is better.} a5 {[%emt 0:00:22]} ({Better is} 8... Qc7) 9. Bf4 {[%emt 0:05:13]} e5 {[%emt 0:05:16] [#]} (9... Qc7 $16) 10. dxe5 $1 $18 {[%emt 0:08:15]} dxe5 {[%emt 0:00:20]} 11. Be3 {[%emt 0:23:56]} Qc7 {[%emt 0:01:34]} 12. Ng5 {[%emt 0:03:38]} Nh6 {[%emt 0:01:04]} 13. f4 {[%emt 0:01:21][%cal Ob3f7] aiming for Bxf7+!} O-O {[%emt 0:00:53]} 14. f5 $36 {[%emt 0:00:52][%mdl 2048] White is on the roll.} b5 {[%emt 0:00:51]} (14... Nf6 $16 {was necessary.} 15. fxg6 hxg6) 15. fxg6 {[%emt 0:00:22]} hxg6 {[%emt 0:00:40] [#]} 16. a3 $1 {[%emt 0:20:16] White has more active pieces.} Ba6 {[%emt 0:02:33]} 17. Rf3 {[%emt 0:01:53]} Rad8 {[%emt 0:04:15]} (17... Nf6 $142 18. Bc5 Rfd8) 18. Qe1 {[%emt 0:00:50]} a4 {[%emt 0:03:11]} 19. Ba2 {[%emt 0:00:08] Hoping for Qh4.} c5 $2 {[%emt 0:00:44]} (19... Nf6 20. Qf2 Rd6) 20. Qh4 {[%emt 0:02:46][%cal Of3f7] Black must now prevent Rxf7!} c4 {[%emt 0:02:04]} 21. Raf1 $2 {[%emt 0:03:15]} (21. Nd5 Qd6 22. Nxf7 {[%mdl 64] Discovered Attack, Deflection} Rxf7 23. Qxd8+ Qf8 24. Qxf8+ Bxf8 25. Rd1) 21... Nb6 $2 {[%emt 0:03:26] [#]} (21... Qc6 22. Rg3 (22. Nd5 Rde8 $18) 22... Nf6) 22. Rxf7 $3 {[%emt 0:00:56][%mdl 512] White is clearly winning.} Rxf7 {[%emt 0:00:45]} (22... Qc6 23. Ra7) 23. Rxf7 {[%emt 0:02:19]} Nxf7 {[%emt 0:00:39]} 24. Qh7+ {[%emt 0:00:18]} Kf8 {[%emt 0:00:34]} 25. Ne6+ {[%emt 0:00:03] Black did not feel at home in the position after the opening. Excellently played by KONAN KOUASSI AUGUSTIN!   Weighted Error Value: White=0.38/Black=0.78} (25. Qxg6 $2 {too greedy.} Nxg5 26. Bxb6 Qd6 27. Qxd6+ {[%mdl 64] Remove Defender} Rxd6 $19) 1-0

[Event "FIDE Zonal 4-2 Open 2023"]
[Site "Dimbroko"]
[Date "2023.03.27"]
[Round "4.11"]
[White "Joel O. Ebiekuta"]
[Black "Daniel Kolliemelen"]
[Result "0-1"]
[ECO "C15"]
[WhiteElo "1855"]
[BlackElo "1805"]
[Annotator "NA RC COMBH"]
[PlyCount "86"]
[EventDate "2023.03.25"]
[EventType "swiss"]
[EventCountry "IVO"]
[SourceTitle "playchess.com"]
[Source "ChessBase"]
[SourceQuality "1"]
[TimeControl "40/5400+30:1800+30"]

{[%evp 18,86,-149,32767,32767,32767,-183,-220,-235,-259,32767,32767,32767,-241,-168,32767,32767,32767,-199,-288,-256,-264,-280,-393,-403,-418,-396,32767,32767,32767,32767,-412,-191,-176,-187,-169,-150,-291,-334,-409,-446,-501,-465,-540,-518,-527,-557,-563,-577,-581,-387,-294,32767,-280,-290,-314,-332,-397,-381,-349,-300,-316,-414,-424,-405,-655,-1710,-815,-1996,-29976,-254]} 1. e4 {[%emt 0:00:06]} e6 {[%emt 0:00:36]} 2. d4 {[%emt 0:01:00]} d5 {[%emt 0:01:07]} 3. Nc3 {[%emt 0:05:15]} Bb4 {[%emt 0:01:35]} 4. Bd3 {[%emt 0:04:58]} Nc6 {[%emt 0:05:19]} 5. Nf3 {[%emt 0:00:42]} Nge7 {[%emt 0:05:01]} 6. a3 {[%emt 0:04:56]} Ba5 {[%emt 0:11:20]} 7. Be3 {[%emt 0:11:33]} dxe4 {[%emt 0:01:39]} 8. Bxe4 {[%emt 0:03:09]} Nd5 {[%emt 0:00:53]} 9. Bd3 {[%emt 0:02:06]} Nxc3 {[%emt 0:04:47]} ({Inferior is} 9... Bxc3+ 10. bxc3 Nxc3 11. Qd2 $11) 10. bxc3 {[%emt 0:00:07]} Bxc3+ {[%emt 0:02:58]} 11. Kf1 {[%emt 0:00:01]} Bxa1 {[%emt 0:02:18]} ({Less strong is} 11... Nxd4 12. Nxd4 c6 13. Ne2 Bxa1 14. Qxa1 $14) 12. Qxa1 {[%emt 0:00:20]} Ne7 {[%emt 0:00:53]} 13. c4 {[%emt 0:01:52]} f6 {[%emt 0:06:06]} 14. Ke2 {[%emt 0:01:38]} c6 {[%emt 0:03:50]} 15. h4 {[%emt 0:01:44]} a6 {[%emt 0:04:29]} 16. a4 {[%emt 0:01:35]} Bd7 {[%emt 0:00:33]} 17. Qb1 {[%emt 0:00:22] [#]} b5 $1 {[%emt 0:00:32]} 18. cxb5 {[%emt 0:01:53]} (18. Qc2 $142) 18... axb5 {[%emt 0:00:20]} 19. axb5 {[%emt 0:00:10]} cxb5 {[%emt 0:01:28]} 20. Bxh7 {[%emt 0:00:51] [#]} b4 $1 {[%emt 0:03:51]} 21. Bd3 {[%emt 0:00:34]} Qa5 {[%emt 0:00:47]} 22. Bd2 {[%emt 0:00:27]} Bb5 {[%emt 0:01:49]} 23. Qxb4 {[%emt 0:02:51]} Bxd3+ {[%emt 0:00:16]} 24. Kxd3 {[%emt 0:00:17]} Qxb4 {[%emt 0:00:45]} (24... Qf5+ $142 25. Ke2 Qe4+ 26. Kf1 Kf7) 25. Bxb4 {[%emt 0:00:03]} Nd5 {[%emt 0:00:10]} 26. Bd2 {[%emt 0:01:00]} Kf7 {[%emt 0:01:07]} 27. g4 {[%emt 0:00:16]} (27. Rb1 $17) 27... Ra3+ {[%emt 0:01:16]} 28. Ke2 {[%emt 0:01:00]} Rb8 {[%emt 0:01:27]} 29. Rh3 {[%emt 0:00:27]} Ra2 {[%emt 0:01:12]} 30. Kf1 {[%emt 0:03:26]} Rbb2 {[%emt 0:00:19]} 31. Be1 {[%emt 0:00:40]} Nf4 {[%emt 0:00:58]} 32. Rg3 {[%emt 0:00:10]} Ra1 {[%emt 0:00:16]} 33. Ng1 {[%emt 0:01:14]} Rbb1 {[%emt 0:00:39]} 34. Re3 {[%emt 0:00:18]} Nd3 {[%emt 0:03:05]} 35. Nf3 {[%emt 0:01:36]} Nxe1 {[%emt 0:01:04]} 36. Nxe1 {[%emt 0:00:14]} Rd1 {[%emt 0:00:32]} 37. f3 {[%emt 0:03:03]} Rxd4 {[%emt 0:00:35]} 38. Kf2 {[%emt 0:00:25]} Rd2+ {[%emt 0:01:33]} 39. Kg3 {[%emt 0:00:41]} Raa2 {[%emt 0:00:37]} 40. Rb3 $2 {[%emt 0:01:55]} (40. f4) 40... e5 {[%emt 0:00:23]} 41. f4 $2 {[%emt 0:31:29]} (41. Re3) 41... Re2 {[%emt 0:30:09]} 42. Rb7+ {[%emt 0:00:02]} Kg8 {[%emt 0:00:04]} 43. Rb1 {[%emt 0:00:15]} Re3+ $19 {[%emt 0:00:22]} (43... Ra3+ {mates} 44. Nf3 e4 {[%mdl 64] Pin} 45. Rf1 Ree3 {[%mdl 64] Pin} 46. Kh2 Rxf3 47. Kg1 Rxf1+ 48. Kxf1 Rf3+ 49. Ke2 Rxf4 50. Ke3 Rxg4 51. Kf2 Rxh4 52. Ke3 f5 53. Kd4 Rh3 54. Kc4 Rd3 55. Kc5 f4 56. Kb6 f3 57. Kc7 f2 58. Kc6 f1=Q 59. Kc5 Qc1+ 60. Kb4 e3 61. Ka5 Rb3 62. Ka6 Qa3#) 0-1